fUSD/lending_fUSD_20240113
["ID","MTS","AMOUNT","RATE_DAILY","PERIOD"]
[311461679,1705150234266,-500.0,0.0002299,2]
[311461680,1705150234275,-500.0,0.0002299,2]
[311461681,1705150234287,-500.0,0.0002299,2]
[311461682,1705150234296,-500.0,0.0002299,2]
[311461683,1705150234306,-500.0,0.0002299,2]
[311461684,1705150234316,-503.74907478,0.0002299,2]
[311461685,1705150234325,-500.0,0.0002299,2]
[311461686,1705150234335,-505.2955211,0.0002299,2]
[311461687,1705150234344,-500.0,0.0002299,2]
[311461688,1705150234353,-500.0,0.0002299,2]
[311461689,1705150234363,-500.0,0.0002299,2]
[311461690,1705150234373,-500.0,0.0002299,2]
[311461691,1705150234382,-500.0,0.0002299,2]
[311461692,1705150234391,-500.0,0.0002299,2]
[311461693,1705150234400,-500.0,0.0002299,2]
[311461694,1705150234410,-500.0,0.0002299,2]
[311461695,1705150234419,-500.0,0.0002299,2]
[311461696,1705150234428,-500.0,0.0002299,2]
[311461697,1705150234437,-500.0,0.0002299,2]
[311461698,1705150234448,-500.0,0.0002299,2]
[311461699,1705150234459,-500.0,0.0002299,2]
[311461700,1705150234468,-500.0,0.0002299,2]
[311461701,1705150234478,-500.0,0.0002299,2]
[311461702,1705150234486,-500.0,0.0002299,2]
[311461703,1705150234495,-500.0,0.0002299,2]
[311461704,1705150234505,-500.0,0.0002299,2]
[311461705,1705150234514,-500.0,0.0002299,2]
[311461706,1705150234524,-500.0,0.0002299,2]
[311461707,1705150234533,-500.0,0.0002299,2]
[311461708,1705150234543,-500.0,0.0002299,2]
[311461709,1705150234553,-500.0,0.0002299,2]
[311461710,1705150234562,-511.67988264,0.0002299,2]
[311461711,1705150234571,-667.29,0.0002299,2]
[311461712,1705150234580,-500.0,0.0002299,2]
[311461713,1705150234590,-500.0,0.0002299,2]
[311461714,1705150234599,-528.18,0.0002299,2]
[311461715,1705150234609,-500.0,0.0002299,2]
[311461716,1705150234618,-500.0,0.0002299,2]
[311461717,1705150234627,-502.66326658,0.0002299,2]
[311461718,1705150234637,-500.0,0.0002299,2]
[311461719,1705150234647,-500.0,0.0002299,2]
[311461720,1705150234657,-1787.0,0.0002299,2]
[311461721,1705150234666,-500.96249784,0.0002299,2]
[311461722,1705150234676,-500.0,0.0002299,2]
[311461723,1705150234685,-516.6,0.0002299,2]
[311461724,1705150234695,-500.0,0.0002299,2]
[311461725,1705150234704,-500.0,0.0002299,2]
[311461726,1705150234714,-500.0,0.0002299,2]
[311461727,1705150234723,-500.0,0.0002299,2]
[311461728,1705150234732,-496.7,0.0002299,2]
[311461729,1705150234742,-500.0,0.0002299,2]
[311461730,1705150234751,-500.0,0.0002299,2]
[311461731,1705150234761,-520.45,0.0002299,2]
[311461732,1705150234771,-502.04612836,0.0002299,2]
[311461733,1705150234781,-500.0,0.0002299,2]
[311461734,1705150234790,-752.12,0.0002299,2]
[311461735,1705150234800,-500.0,0.0002299,2]
[311461736,1705150234809,-421.29908164,0.0002299,2]
[311461737,1705150234818,-500.0,0.0002299,2]
[311461738,1705150234828,-1274.77,0.0002299,2]
[311461739,1705150234837,-500.0,0.0002299,2]
[311461740,1705150234846,-325.84815836,0.0002299,2]
[311461741,1705150234856,-500.0,0.0002299,2]
[311461742,1705150234866,-500.0,0.0002299,2]
[311461743,1705150234875,-500.0,0.0002299,2]
[311461744,1705150234884,-668.94,0.0002299,2]
[311461745,1705150234893,-500.0,0.0002299,2]
[311461746,1705150234903,-2057.05,0.0002299,5]
[311461747,1705150234911,-500.0,0.0002299,2]
[311461748,1705150234920,-504.02958817,0.0002299,2]
[311461749,1705150234929,-500.0,0.0002299,2]
[311461750,1705150234939,-500.0,0.0002299,2]
[311461751,1705150234948,-500.5,0.0002299,2]
[311461752,1705150234957,-500.0,0.0002299,2]
[311461753,1705150234967,-500.0,0.0002299,2]
[311461754,1705150234976,-500.0,0.0002299,2]
[311461755,1705150234985,-500.0,0.0002299,2]
[311461756,1705150234995,-500.0,0.0002299,2]
[311461757,1705150235004,-500.0,0.0002299,2]
[311461758,1705150235014,-500.0,0.0002299,2]
[311461759,1705150235023,-500.0,0.0002299,2]
[311461760,1705150235033,-500.0,0.0002299,2]
[311461761,1705150235043,-1658.16,0.0002299,2]
[311461762,1705150235052,-500.0,0.0002299,2]
[311461763,1705150235062,-305.70224763,0.0002299,2]
[311461764,1705150235071,-213.77090963,0.0002299,2]
[311461765,1705150235081,-500.0,0.0002299,2]
[311461766,1705150235091,-1711.07,0.0002299,2]
[311461767,1705150235100,-500.0,0.0002299,2]
[311461768,1705150235110,-553.19,0.0002299,2]
[311461769,1705150235119,-500.0,0.0002299,2]
[311461770,1705150235129,-15620.01,0.0002299,2]
[311461771,1705150235138,-500.0,0.0002299,2]
[311461772,1705150235147,-500.0,0.0002299,2]
[311461773,1705150235157,-500.0,0.0002299,2]
[311461774,1705150235171,-500.0,0.0002299,2]
[311461775,1705150235180,-500.0,0.0002299,2]
[311461776,1705150235190,-500.0,0.0002299,2]
[311461777,1705150235200,-500.0,0.0002299,2]
[311461778,1705150235210,-5616.5,0.0002299,2]
[311461779,1705150235219,-1620.73,0.0002299,2]
[311461780,1705150235230,-500.0,0.0002299,2]
[311461781,1705150235239,-500.0,0.0002299,2]
[311461782,1705150235248,-500.0,0.0002299,2]
[311461783,1705150235258,-500.0,0.0002299,2]
[311461784,1705150235268,-592.86805638,0.0002299,2]
[311461785,1705150235277,-500.0,0.0002299,2]
[311461786,1705150235287,-643.69,0.0002299,2]
[311461787,1705150235296,-500.0,0.0002299,2]
[311461788,1705150235305,-500.0,0.0002299,2]
[311461789,1705150235314,-165.01914748,0.0002299,2]
[311461790,1705150235324,-500.0,0.0002299,2]
[311461791,1705150235333,-500.0,0.0002299,2]
[311461792,1705150235343,-518.36,0.0002299,2]
[311461793,1705150235352,-1628.37,0.0002299,2]
[311461794,1705150235361,-500.0,0.0002299,2]
[311461795,1705150235371,-500.0,0.0002299,2]
[311461796,1705150235380,-757.08,0.0002299,2]
[311461797,1705150235390,-500.0,0.0002299,2]
[311461798,1705150235400,-500.0,0.0002299,2]
[311461799,1705150235409,-500.0,0.0002299,2]
[311461800,1705150235419,-500.0,0.0002299,2]
[311461801,1705150235428,-595.96,0.0002299,2]
[311461802,1705150235438,-500.0,0.0002299,2]
[311461803,1705150235447,-500.0,0.0002299,2]
[311461804,1705150235457,-500.0,0.0002299,2]
[311461805,1705150235467,-635.51,0.0002299,2]
[311461806,1705150235477,-500.0,0.0002299,2]
[311461807,1705150235486,-172.25860344,0.0002299,2]
[311461808,1705150235496,-605.34637046,0.0002299,2]
[311461809,1705150235505,-601.93,0.0002299,2]
[311461810,1705150235515,-501.48979119,0.0002299,2]
[311461811,1705150235524,-750.49,0.0002299,2]
[311461812,1705150235533,-500.0,0.0002299,2]
[311461813,1705150235543,-500.0,0.0002299,2]
[311461814,1705150235552,-735.4,0.0002299,2]
[311461815,1705150235563,-1319.21,0.0002299,2]
[311461816,1705150235572,-565.95,0.0002299,2]
[311461817,1705150235581,-500.0,0.0002299,2]
[311461818,1705150235591,-500.0,0.0002299,2]
[311461819,1705150235600,-500.0,0.0002299,2]
[311461820,1705150235610,-500.0,0.0002299,2]
[311461821,1705150235620,-1000.0,0.0002299,2]
[311461822,1705150235629,-500.0,0.0002299,2]
[311461823,1705150235639,-500.0,0.0002299,2]
[311461824,1705150235649,-500.0,0.0002299,2]
[311461825,1705150235658,-500.0,0.0002299,2]
[311461826,1705150235668,-13117.98,0.0002299,2]
[311461827,1705150235677,-500.0,0.0002299,2]
[311461828,1705150235687,-500.0,0.0002299,2]
[311461829,1705150235697,-500.0,0.0002299,2]
[311461830,1705150235707,-500.0,0.0002299,2]
[311461831,1705150235718,-1110.99,0.0002299,2]
[311461832,1705150235727,-3753.64,0.0002299,2]
[311461833,1705150235738,-500.0,0.0002299,2]
[311461834,1705150235748,-500.0,0.0002299,2]
[311461835,1705150235758,-500.0,0.0002299,2]
[311461836,1705150235767,-828.5,0.0002299,2]
[311461837,1705150235777,-500.0,0.0002299,2]
[311461838,1705150235787,-501.90531653,0.0002299,2]
[311461839,1705150235797,-500.10411362,0.0002299,2]
[311461840,1705150235807,-500.0,0.0002299,2]
[311461841,1705150235816,-500.0,0.0002299,2]
[311461842,1705150235825,-848.51,0.0002299,2]
[311461843,1705150235835,-500.0,0.0002299,2]
[311461844,1705150235844,-505.02208704,0.0002299,2]
[311461845,1705150235853,-2760.57,0.0002299,2]
[311461846,1705150235863,-500.0,0.0002299,2]
[311461847,1705150235873,-500.0,0.0002299,2]
[311461848,1705150235882,-511.81768729,0.0002299,2]
[311461849,1705150235892,-508.26414741,0.0002299,2]
[311461850,1705150235901,-523.35,0.0002299,2]
[311461851,1705150235910,-500.0,0.0002299,2]
[311461852,1705150235919,-500.0,0.0002299,2]
[311461853,1705150235929,-739.67,0.0002299,2]
[311461854,1705150235939,-513.26,0.0002299,2]
[311461855,1705150235949,-529.63491127,0.0002299,2]
[311461856,1705150235958,-512.39130834,0.0002299,2]
[311461857,1705150235968,-500.0,0.0002299,2]
[311461858,1705150235977,-500.0,0.0002299,2]
[311461859,1705150235987,-500.0,0.0002299,2]
[311461860,1705150235996,-500.0,0.0002299,2]
[311461861,1705150236006,-913.76,0.0002299,2]
[311461862,1705150236015,-500.0,0.0002299,2]
[311461863,1705150236025,-500.0,0.0002299,2]
[311461864,1705150236034,-500.0,0.0002299,2]
[311461865,1705150236044,-500.0,0.0002299,2]
[311461866,1705150236054,-500.0,0.0002299,2]
[311461867,1705150236063,-535.01709181,0.0002299,2]
[311461868,1705150236073,-500.0,0.0002299,2]
[311461869,1705150236082,-500.0,0.0002299,2]
[311461870,1705150236091,-500.0,0.0002299,2]
[311461871,1705150236101,-500.0,0.0002299,2]
[311461872,1705150236110,-588.76,0.0002299,2]
[311461873,1705150236120,-500.0,0.0002299,2]
[311461874,1705150236129,-1459.15,0.0002299,2]
[311461875,1705150236138,-500.0,0.0002299,2]
[311461876,1705150236147,-500.0,0.0002299,2]
[311461877,1705150236157,-500.0,0.0002299,2]
[311461878,1705150236169,-500.0,0.0002299,2]
[311461879,1705150236179,-500.0,0.0002299,2]
[311461880,1705150236188,-968.66,0.0002299,2]
[311461881,1705150236197,-2543.59,0.0002299,2]
[311461882,1705150236206,-500.0,0.0002299,2]
[311461883,1705150236216,-500.0,0.0002299,2]
[311461884,1705150236226,-500.0,0.0002299,2]
[311461885,1705150236235,-500.0,0.0002299,2]
[311461886,1705150236245,-500.0,0.0002299,2]
[311461887,1705150236254,-569.71,0.0002299,2]
[311461888,1705150236263,-500.0,0.0002299,2]
[311461889,1705150236273,-500.0,0.0002299,2]
[311461890,1705150236282,-500.0,0.0002299,2]
[311461891,1705150236291,-501.5241979,0.0002299,2]
[311461892,1705150236301,-1098.52,0.0002299,2]
[311461893,1705150236310,-500.0,0.0002299,2]
[311461894,1705150236319,-501.93169921,0.0002299,2]
[311461895,1705150236328,-777.07,0.0002299,2]
[311461896,1705150236337,-500.0,0.0002299,2]
[311461897,1705150236347,-500.0,0.0002299,2]
[311461898,1705150236356,-500.0,0.0002299,2]
[311461899,1705150236365,-680.25,0.0002299,2]
[311461900,1705150236375,-500.8319286,0.0002299,2]
[311461901,1705150236384,-502.55398001,0.0002299,2]
[311461902,1705150236393,-500.0,0.0002299,2]
[311461903,1705150236403,-500.0,0.0002299,2]
[311461904,1705150236412,-500.0,0.0002299,2]
[311461905,1705150236421,-500.0,0.0002299,2]
[311461906,1705150236431,-558.47,0.0002299,2]
[311461907,1705150236440,-500.0,0.0002299,2]
[311461908,1705150236449,-500.0,0.0002299,2]
[311461909,1705150236458,-7745.78,0.0002299,2]
[311461910,1705150236469,-500.0,0.0002299,2]
[311461911,1705150236478,-500.0,0.0002299,2]
[311461912,1705150236488,-503.44467174,0.0002299,2]
[311461913,1705150236497,-500.0,0.0002299,2]
[311461914,1705150236507,-500.0,0.0002299,2]
[311461915,1705150236516,-500.0,0.0002299,2]
[311461916,1705150236526,-500.0,0.0002299,2]
[311461917,1705150236535,-1069.14,0.0002299,2]
[311461918,1705150236545,-500.0,0.0002299,2]
[311461919,1705150236554,-602.382718,0.0002299,2]
[311461920,1705150236563,-500.0,0.0002299,2]
[311461921,1705150236572,-500.0,0.0002299,2]
[311461922,1705150236582,-756.96,0.0002299,2]
[311461923,1705150236591,-2080.1,0.0002299,2]
[311461924,1705150236601,-500.0,0.0002299,2]
[311461925,1705150236610,-500.0,0.0002299,2]
[311461926,1705150236620,-500.0,0.0002299,2]
[311461927,1705150236629,-500.0,0.0002299,2]
[311461928,1705150236639,-506.4,0.0002299,2]
[311461929,1705150236648,-500.0,0.0002299,2]
[311461930,1705150236658,-500.0,0.0002299,2]
[311461931,1705150236667,-643.57779137,0.0002299,2]
[311461932,1705150236676,-500.0,0.0002299,2]
[311461933,1705150236686,-617.62,0.0002299,2]
[311461934,1705150236695,-361.29251612,0.0002299,2]
[311461935,1705150236705,-500.0,0.0002299,2]
[311461936,1705150236716,-500.0,0.0002299,2]
[311461937,1705150236730,-286.50045053,0.0002299,2]
[311461938,1705150236739,-500.0,0.0002299,2]
[311461939,1705150236748,-795.72,0.0002299,2]
[311461940,1705150236758,-830.58,0.0002299,2]
[311461941,1705150236767,-500.0,0.0002299,2]
[311461942,1705150236777,-500.0,0.00022991,2]
[311461943,1705150236786,-500.0,0.00022991,2]
[311461944,1705150236795,-500.0,0.00022991,2]
[311461945,1705150236806,-500.0,0.00022991,2]
[311461946,1705150236815,-500.0,0.00022991,2]
[311461947,1705150236825,-500.0,0.00022991,2]
[311461948,1705150236834,-500.0,0.00022991,2]
[311461949,1705150236843,-500.0,0.00022991,2]
[311461950,1705150236854,-500.0,0.00022991,2]
[311461951,1705150236863,-500.0,0.00022991,2]
[311461952,1705150236873,-500.0,0.00022991,2]
[311461953,1705150236884,-500.0,0.00022991,2]
[311461954,1705150236893,-500.0,0.00022991,2]
[311461955,1705150236902,-500.0,0.00022991,2]
[311461956,1705150236911,-500.0,0.00022991,2]
[311461957,1705150236921,-500.0,0.00022991,2]
[311461958,1705150236930,-500.0,0.00022991,2]
[311461959,1705150236940,-500.0,0.00022991,2]
[311461960,1705150236949,-500.0,0.00022991,2]
[311461961,1705150236959,-500.0,0.00022991,2]
[311461962,1705150236969,-500.0,0.00022991,2]
[311461963,1705150236978,-500.0,0.00022991,2]
[311461964,1705150236987,-500.0,0.00022991,2]
[311461965,1705150236996,-500.0,0.00022991,2]
[311461966,1705150237006,-518.47605806,0.00022991,2]
[311461967,1705150237015,-783.5,0.00022991,2]
[311461968,1705150237025,-500.0,0.00022991,2]
[311461969,1705150237034,-551.71,0.00022991,2]
[311461970,1705150237043,-500.0,0.00022991,2]
[311461971,1705150237053,-500.0,0.00022991,2]
[311461972,1705150237062,-500.0,0.00022991,2]
[311461973,1705150237072,-500.0,0.00022991,2]
[311461974,1705150237082,-500.0,0.00022991,2]
[311461975,1705150237091,-500.0,0.00022991,2]
[311461976,1705150237101,-500.0,0.00022991,2]
[311461977,1705150237110,-500.0,0.00022991,2]
[311461978,1705150237119,-500.0,0.00022991,2]
[311461979,1705150237129,-500.0,0.00022991,2]
[311461980,1705150237138,-500.0,0.00022991,2]
[311461981,1705150237147,-500.0,0.00022991,2]
[311461982,1705150237157,-500.0,0.00022991,2]
[311461983,1705150237170,-500.0,0.00022991,2]
[311461984,1705150237182,-500.0,0.00022991,2]
[311461985,1705150237191,-500.0,0.00022991,2]
[311461986,1705150237200,-586.31,0.00022991,2]
[311461987,1705150237210,-500.0,0.00022991,2]
[311461988,1705150237221,-500.0,0.00022991,2]
[311461989,1705150237231,-500.0,0.00022991,2]
[311461990,1705150237240,-500.0,0.00022991,2]
[311461991,1705150237250,-500.0,0.00022991,2]
[311461992,1705150237259,-500.0,0.00022991,2]
[311461993,1705150237268,-500.0,0.00022991,2]
[311461994,1705150237278,-500.0,0.00022991,2]
[311461995,1705150237287,-500.0,0.00022991,2]
[311461996,1705150237296,-500.0,0.00022991,2]
[311461997,1705150237305,-520.71,0.00022991,2]
[311461998,1705150237314,-500.26869681,0.00022991,2]
[311461999,1705150237323,-500.0,0.00022991,2]
[311462000,1705150237332,-500.0,0.00022991,2]
[311462001,1705150237341,-500.0,0.00022991,2]
[311462002,1705150237350,-500.0,0.00022991,2]
[311462003,1705150237359,-500.0,0.00022991,2]
[311462004,1705150237369,-500.0,0.00022991,2]
[311462005,1705150237378,-500.0,0.00022991,2]
[311462006,1705150237387,-500.0,0.00022991,2]
[311462007,1705150237397,-500.0,0.00022991,2]
[311462008,1705150237406,-500.0,0.00022991,2]
[311462009,1705150237415,-500.0,0.00022991,2]
[311462010,1705150237424,-150.0,0.00022991,2]
[311462011,1705150237434,-2450.56,0.00022991,2]
[311462012,1705150237443,-500.0,0.00022991,2]
[311462013,1705150237451,-500.0,0.00022991,2]
[311462014,1705150237461,-500.0,0.00022991,2]
[311462015,1705150237470,-500.0,0.00022991,2]
[311462016,1705150237480,-500.0,0.00022991,2]
[311462017,1705150237489,-544.24,0.00022991,2]
[311462018,1705150237498,-7311.95,0.00022991,2]
[311462019,1705150237507,-500.0,0.00022991,2]
[311462020,1705150237517,-500.0,0.00022991,2]
[311462021,1705150237526,-500.0,0.00022991,2]
[311462022,1705150237536,-639.24,0.00022991,2]
[311462023,1705150237545,-500.0,0.00022991,2]
[311462024,1705150237554,-500.0,0.00022991,2]
[311462025,1705150237564,-500.0,0.00022991,2]
[311462026,1705150237573,-916.31,0.00022991,2]
[311462027,1705150237583,-1659.0,0.00022991,2]
[311462028,1705150237592,-837.51,0.00022991,2]
[311462029,1705150237602,-982.19,0.00022991,2]
[311462030,1705150237611,-500.0,0.00022991,2]
[311462031,1705150237620,-500.0,0.00022991,2]
[311462032,1705150237630,-1493.29,0.00022991,2]
[311462033,1705150237640,-500.0,0.00022991,2]
[311462034,1705150237649,-500.0,0.00022991,2]
[311462035,1705150237658,-4826.06,0.00022991,2]
[311462036,1705150237668,-500.0,0.00022991,2]
[311462037,1705150237677,-500.0,0.00022991,2]
[311462038,1705150237686,-500.0,0.00022991,2]
[311462039,1705150237695,-500.0,0.00022991,2]
[311462040,1705150237705,-3640.78,0.00022991,2]
[311462041,1705150237714,-500.0,0.00022991,2]
[311462042,1705150237724,-502.49,0.00022991,2]
[311462043,1705150237733,-1388.39,0.00022991,2]
[311462044,1705150237743,-1856.76,0.00022991,2]
[311462045,1705150237752,-500.0,0.00022991,2]
[311462046,1705150237761,-500.0,0.00022991,2]
[311462047,1705150237770,-830.2,0.00022991,2]
[311462048,1705150237780,-1310.36,0.00022991,2]
[311462049,1705150237789,-500.0,0.00022991,2]
[311462050,1705150237798,-3345.06,0.00022991,2]
[311462051,1705150237807,-500.0,0.00022991,2]
[311462052,1705150237817,-787.85,0.00022991,2]
[311462053,1705150237826,-500.0,0.00022991,2]
[311462054,1705150237835,-753.01,0.00022991,2]
[311462055,1705150237844,-500.0,0.00022991,2]
[311462056,1705150237853,-1919.45,0.00022991,2]
[311462057,1705150237863,-1641.93,0.00022991,2]
[311462058,1705150237872,-504.7,0.00022991,2]
[311462059,1705150237881,-674.92,0.00022991,2]
[311462060,1705150237891,-500.0,0.00022991,2]
[311462061,1705150237900,-825.39,0.00022991,2]
[311462062,1705150237909,-500.0,0.00022991,2]
[311462063,1705150237919,-500.0,0.00022991,2]
[311462064,1705150237928,-500.0,0.00022991,2]
[311462065,1705150237937,-500.0,0.00022991,2]
[311462066,1705150237947,-3157.02,0.00022991,2]
[311462067,1705150237956,-959.03,0.00022991,2]
[311462068,1705150237966,-500.0,0.00022991,2]
[311462069,1705150237975,-500.0,0.00022991,2]
[311462070,1705150237985,-7100.56,0.00022991,2]
[311462071,1705150237995,-593.17,0.00022991,2]
[311462072,1705150238005,-500.0,0.00022991,2]
[311462073,1705150238014,-500.0,0.00022991,2]
[311462074,1705150238023,-505.41776868,0.00022991,2]
[311462075,1705150238033,-1241.26,0.00022991,2]
[311462076,1705150238042,-1165.39,0.00022991,2]
[311462077,1705150238051,-500.0,0.00022991,2]
[311462078,1705150238061,-500.0,0.00022991,2]
[311462079,1705150238070,-500.0,0.00022991,2]
[311462080,1705150238080,-1987.11,0.00022991,2]
[311462081,1705150238089,-698.36,0.00022991,2]
[311462086,1705150238322,-1077.98,0.00022991,2]
[311462087,1705150238332,-500.0,0.00022991,2]
[311462088,1705150238342,-500.0,0.00022991,2]
[311462089,1705150238351,-951.04,0.00022991,2]
[311462091,1705150238361,-791.83,0.00022991,2]
[311462092,1705150238370,-500.0,0.00022991,2]
[311462093,1705150238379,-548.48,0.00022991,2]
[311462094,1705150238388,-500.0,0.00022991,2]
[311462095,1705150238398,-500.0,0.00022991,2]
[311462096,1705150238407,-500.0,0.00022991,2]
[311462097,1705150238416,-1437.12,0.00022991,2]
[311462098,1705150238426,-1682.9,0.00022991,2]
[311462099,1705150238436,-1043.07,0.00022991,5]
[311462100,1705150238447,-500.0,0.00022991,2]
[311462101,1705150238456,-500.0,0.00022991,2]
[311462102,1705150238466,-500.0,0.00022991,2]
[311462103,1705150238476,-2179.94,0.00022991,2]
[311462104,1705150238485,-500.0,0.00022991,2]
[311462105,1705150238494,-500.0,0.00022991,2]
[311462106,1705150238503,-1480.22,0.00022991,2]
[311462107,1705150238513,-1161.56,0.00022991,2]
[311462108,1705150238522,-500.0,0.00022991,2]
[311462109,1705150238532,-500.0,0.00022991,2]
[311462110,1705150238542,-507.01,0.00022991,2]
[311462111,1705150238552,-767.75,0.00022991,2]
[311462112,1705150238561,-784.3,0.00022991,2]
[311462113,1705150238571,-500.0,0.00022991,2]
[311462114,1705150238581,-500.0,0.00022991,2]
[311462115,1705150238591,-500.0,0.00022991,2]
[311462116,1705150238600,-500.0,0.00022991,2]
[311462117,1705150238610,-500.0,0.00022991,2]
[311462118,1705150238619,-793.13,0.00022991,2]
[311462119,1705150238629,-659.94,0.00022991,2]
[311462120,1705150238638,-622.39,0.00022991,2]
[311462121,1705150238647,-500.0,0.00022991,2]
[311462122,1705150238656,-500.0,0.00022991,2]
[311462123,1705150238666,-500.0,0.00022991,2]
[311462124,1705150238676,-603.87,0.00022991,2]
[311462125,1705150238686,-500.0,0.00022991,2]
[311462126,1705150238695,-2077.64,0.00022991,2]
[311462127,1705150238705,-500.0,0.00022991,2]
[311462128,1705150238714,-583.22,0.00022991,2]
[311462129,1705150238724,-500.0,0.00022991,2]
[311462130,1705150238734,-500.0,0.00022991,2]
[311462131,1705150238743,-943.38,0.00022991,2]
[311462132,1705150238753,-4105.73,0.00022991,2]
[311462133,1705150238762,-500.0,0.00022991,2]
[311462134,1705150238771,-4504.11,0.00022991,2]
[311462135,1705150238781,-500.0,0.00022991,2]
[311462136,1705150238790,-500.0,0.00022991,2]
[311462137,1705150238800,-500.0,0.00022991,2]
[311462138,1705150238809,-883.91899478,0.00022992,2]
[311462139,1705150238819,-500.0,0.00022992,2]
[311462140,1705150238829,-500.0,0.00022992,2]
[311462141,1705150238838,-500.0,0.00022992,2]
[311462142,1705150238847,-500.0,0.00022992,2]
[311462143,1705150238856,-500.0,0.00022992,2]
[311462145,1705150238866,-500.0,0.00022992,2]
[311462147,1705150238875,-500.0,0.00022992,2]
[311462149,1705150238884,-500.0,0.00022992,2]
[311462151,1705150238894,-500.0,0.00022992,2]
[311462153,1705150238903,-500.0,0.00022992,2]
[311462154,1705150238913,-500.0,0.00022992,2]
[311462155,1705150238923,-500.0,0.00022992,2]
[311462157,1705150238932,-500.0,0.00022992,2]
[311462159,1705150238942,-500.0,0.00022992,2]
[311462161,1705150238951,-500.0,0.00022992,2]
[311462163,1705150238961,-500.0,0.00022992,2]
[311462165,1705150238971,-500.0,0.00022992,2]
[311462167,1705150238981,-500.0,0.00022992,2]
[311462169,1705150238990,-500.0,0.00022992,2]
[311462171,1705150239000,-500.0,0.00022992,2]
[311462173,1705150239010,-500.0,0.00022992,2]
[311462175,1705150239019,-500.0,0.00022992,2]
[311462178,1705150239029,-500.0,0.00022992,2]
[311462180,1705150239038,-500.0,0.00022992,2]
[311462182,1705150239047,-500.0,0.00022992,2]
[311462184,1705150239056,-500.0,0.00022992,2]
[311462185,1705150239065,-500.0,0.00022992,2]
[311462186,1705150239074,-500.0,0.00022992,2]
[311462187,1705150239083,-500.0,0.00022992,2]
[311462188,1705150239093,-509.79647054,0.00022992,2]
[311462189,1705150239103,-500.0,0.00022992,2]
[311462190,1705150239112,-521.16357158,0.00022992,2]
[311462191,1705150239122,-500.0,0.00022992,2]
[311462192,1705150239131,-500.0,0.00022992,2]
[311462193,1705150239140,-500.0,0.00022992,2]
[311462194,1705150239150,-500.0,0.00022992,2]
[311462195,1705150239160,-500.0,0.00022992,2]
[311462196,1705150239171,-500.0,0.00022992,2]
[311462197,1705150239180,-500.0,0.00022992,2]
[311462198,1705150239189,-500.0,0.00022992,2]
[311462199,1705150239198,-500.0,0.00022992,2]
[311462200,1705150239207,-500.0,0.00022992,2]
[311462201,1705150239218,-500.0,0.00022992,2]
[311462202,1705150239227,-500.0,0.00022992,2]
[311462203,1705150239237,-500.0,0.00022992,2]